Cogmind - Beta 16.1 @@@ ROGUE MODE // 2026.03.11 @ 12:33:26 Player: GlasMayne Result: Destroyed by Y-45 Defender with Heavy Assault Rifle Performance ------------- Evolutions (1) 500 Regions Visited (2) 400 Robots Destroyed (25) 125 Value Destroyed (503) 503 Prototype IDs (3) 60 Alien Tech Used (0) 0 Bonus (0) 0 TOTAL SCORE: 1588 Bonus ------- None Cogmind --------- Core Integrity 0/400 Matter 157/300 Energy 100/100 System Corruption 0% Temperature Cool (0) Movement Core (350) Ox6 Location -9/Materials Parts ------- > --- POWER (1) -------- (None) > --- PROPULSION (4) --- (None) > --- UTILITY (2) ------ Large Storage Unit > --- WEAPON (2) ------- (None) > --- INVENTORY (15) --- Light Nuclear Core Sensor Array Improved Terrain Scanner Terrain Scan Processor Transport Network Coupler Hacking Suite Improved EM Shotgun Medium Laser Advanced Beam Cannon Assault Rifle Improved Assault Rifle Mining Laser Peak State ------------ > --- POWER ------------ Heavy Ion Engine > --- PROPULSION ------- Light Treads Hover Unit Hover Unit > --- UTILITY ---------- Large Storage Unit > --- WEAPON ----------- Advanced Beam Cannon Advanced Beam Cannon > --- INVENTORY -------- Light Nuclear Core Hover Unit Sensor Array Improved Terrain Scanner Terrain Scan Processor Transport Network Coupler Hacking Suite Improved EM Shotgun Medium Laser Advanced Beam Cannon Assault Rifle Improved Assault Rifle Mining Laser [Rating: 15] Favorites ----------- Power Light Ion Engine Engine Light Ion Engine Power Core Light Nuclear Core Propulsion Light Treads Treads Light Treads Hover Unit Hover Unit Utility Seismic Detector Device Seismic Detector Storage Large Storage Unit Weapon Assault Rifle Energy Gun Improved EM Shotgun Energy Cannon Advanced Beam Cannon Ballistic Gun Assault Rifle Launcher Rocket Launcher Build | -11 -10 -9 ------- Run | Yrd Mat Mat Slots Evolved 2 | . . 2 Power . | . . . Propulsion 2 | . . 2 Utility . | . . . Weapon . | . . . Parts Attached 22 | 7 5 10 Power 5 | 1 2 2 Engine 3 | 1 . 2 Core 2 | . 2 . Reactor . | . . . Propulsion 8 | 2 2 4 Treads 2 | 2 . . Leg . | . . . Wheel . | . . . Hover 6 | . 2 4 Flight . | . . . Utility 3 | 2 1 . Device 1 | 1 . . Storage 2 | 1 1 . Processor . | . . . Hackware . | . . . Protection . | . . . Artifact . | . . . Weapon 6 | 2 . 4 Energy Gun 1 | . . 1 Energy Cannon 2 | . . 2 Ballistic Gun 2 | 2 . . Ballistic Cannon . | . . . Launcher 1 | . . 1 Special Weapon . | . . . Impact Weapon . | . . . Slashing Weapon . | . . . Piercing Weapon . | . . . Special Melee Weapon . | . . . Unidentified Prototypes 3 | . . 3 Parts Lost 13 | . . 13 Power 2 | . . 2 Propulsion 7 | . . 7 Utility 1 | . . 1 Weapon 3 | . . 3 Highest Loss Streak 12 | . . 12 To Critical Strikes . | . . . Average Backups 10 | 6 8 13 Power 1 | . 1 1 Propulsion 3 | 3 3 2 Utility 2 | . 2 4 Weapon 2 | 1 2 4 Tool/Special . | . . . Unused Backups 14 | . 4 10 Power . | . . . Propulsion 4 | . 4 . Utility 5 | . . 5 Weapon 4 | . . 4 Tool/Special 1 | . . 1 Average Slot Usage (%) 86 | . 100 70 Engine 5 | . 2 8 Core 6 | . 11 . Treads 14 | . 26 1 Hover 15 | . 1 32 Device 11 | . 14 8 Storage 12 | . 14 11 Energy Cannon 1 | . . 3 Ballistic Gun 16 | . 28 3 Peak Build Rating 15 | 8 10 15 Average Rating 8 | 6 9 9 On Entrance 6 | . 8 10 Avg Prop Armor Cover (%) 5 | . . 5 Naked Turns . | . . . Heaviest Build 36 | 13 30 36 Greatest Support 40 | 40 40 24 Greatest Overweight (x) 11 | 1 4 11 Average Overweight (x) . | . . . Largest Inventory Capacity 15 | 8 15 15 Average Capacity 11 | 7 10 15 Most Carried 15 | 8 13 15 Average Carried 10 | 6 8 13 Final Capacity 15 | 8 15 15 Final Carried 13 | 8 13 12 Class Distribution -------------------- 100% | Mutant Dominant Class ---------------- Mutant | -10/Materials Mutant | -9/Materials Resources | -11 -10 -9 ----------- Run | Yrd Mat Mat Matter Collected 479 | 120 293 66 Remotely . | . . . Salvage Created 648 | 42 293 313 Parts 64 | 11 20 33 Haulers Intercepted 3 | . 1 2 Recyclers Shooed 1 | . 1 . Parts Field Recycled . | . . . Retrieved Matter . | . . . Parts Self-Destructed . | . . . Prevented . | . . . Parts Restored . | . . . Kills | -11 -10 -9 ------- Run | Yrd Mat Mat Combat Hostiles Destroyed 15 | . 7 8 Guns 10 | . 7 3 Cannons 2 | . . 2 AOE 3 | . . 3 Classes Destroyed 9 | 1 4 4 Builder 1 | . . 1 Tunneler 3 | 3 . . Hauler 3 | . 1 2 Recycler 1 | . . 1 Operator 1 | . 1 . Watcher 1 | . . 1 Swarmer 6 | . 3 3 Grunt 8 | . 4 4 Sentry 1 | . . 1 Best Kill Streak 7 | 1 3 7 Combat Bots Only 3 | . 3 3 Max Kills in Single Turn 3 | 1 1 3 Gunslinging . | . . . Exploded 2 | . . 2 Melee . | . . . Uniques/NPCs Destroyed . | . . . Combat | -11 -10 -9 -------- Run | Yrd Mat Mat Hostile Shots Fired 165 | . 32 133 Missed 43 | . 9 34 Hits 122 | . 23 99 Projectile 122 | . 23 99 Critical Strikes 2 | . . 2 Damage Taken 1590 | . 287 1303 Core 425 | . 23 402 Absorbed by Shields . | . . . Core Remaining (%) 95 | 100 90 . Volleys Fired 67 | 10 30 27 Largest 2 | 2 2 2 Hottest 136 | 40 40 136 Shots Fired 111 | 17 60 34 Gun 87 | 17 60 10 Cannon 11 | . . 11 Launcher 13 | . . 13 Special . | . . . Kinetic 87 | 17 60 10 Thermal 11 | . . 11 Explosive 13 | . . 13 Electromagnetic . | . . . Robot Hit Streak 12 | 6 12 11 Robot Miss Streak 2 | 2 2 2 Penetration Max . | . . . Secondary Targets 2 | . 1 1 Max Gunslinging Chain 1 | . 1 1 Shots Hit Robots 77 | 12 42 23 Core Hits 38 | 3 17 18 Critical Kills . | . . . Critical Parts Destroyed . | . . . Critical Strikes . | . . . Melee Attacks . | . . . Impact . | . . . Slashing . | . . . Piercing . | . . . Sneak Attacks . | . . . Combat Hostiles . | . . . Follow-up Attacks . | . . . Damage Inflicted 1522 | 163 537 822 Guns 775 | 163 537 75 Cannons 182 | . . 182 Explosions 565 | . . 565 Melee . | . . . Ramming . | . . . Kinetic 775 | 163 537 75 Thermal 182 | . . 182 Explosive 565 | . . 565 Electromagnetic . | . . . Impact . | . . . Slashing . | . . . Piercing . | . . . Highest Corruption . | . . . Average Corruption . | . . . Corruption Purged . | . . . Corruption Blocked . | . . . Overload Shots . | . . . Overflow Damage 1 | . . 1 Projectiles . | . . . Explosions 1 | . . 1 Melee . | . . . Knockbacks . | . . . Impact . | . . . Kinetic . | . . . Secondary . | . . . Self-Inflicted Damage 27 | . . 27 Shots 2 | . . 2 Rammed . | . . . Targets Rammed . | . . . Kicked . | . . . Crushed . | . . . Highest Temperature 197 | . 4 197 Average Temperature 56 | . 3 67 Received Heat Transfer 615 | . 144 471 Siege Activations . | . . . Martial Activations . | . . . Shielding Activations . | . . . Robots Disrupted . | . . . Combat Hostiles . | . . . Robots Corrupted . | . . . Combat Hostiles . | . . . Parts Fried . | . . . Impact Corruptions . | . . . Robots Melted . | . . . Combat Hostiles . | . . . Parts Melted . | . . . Heat Transferred 333 | . . 333 Parts Sabotaged . | . . . Parts Stolen . | . . . Parts Stripped . | . . . Power Chain Reactions . | . . . Alert | -11 -10 -9 ------- Run | Yrd Mat Mat Maximum Alert Level 1 | . . 1 Low Security (%) 98 | 100 100 97 Level 1 1 | . . 2 Level 2 . | . . . Level 3 . | . . . Level 4 . | . . . Level 5 . | . . . High Security . | . . . Max Security . | . . . Peak Influence 229 | 5 70 229 Initial 22 | . . 22 Average 33 | . 8 82 Influence Increases 643 | 15 182 446 Destroy 0b10 Robot/C 300 | . 140 160 Destroy 0b10 Robot/NC 50 | 15 10 25 Destroy Leader 68 | . 32 36 Successful Hack 7 | . . 7 Disable Machine 45 | . . 45 Destroy Structure 53 | . . 53 Partial Spotted 30 | . . 30 Lose Combat Pursuer 90 | . . 90 Influence Decreases 501 | 15 128 358 Entered New Map 32 | . . 32 Time Decay 339 | 15 128 196 Lost Part 130 | . . 130 Squads Dispatched 3 | . 1 2 Investigation . | . . . Extermination . | . . . Reinforcement 3 | . 1 2 Assault . | . . . Garrison . | . . . Intercept . | . . . Searches Triggered . | . . . Construction Impeded . | . . . Haulers Reinforced . | . . . Active Scanning Responses . | . . . Cargo Convoy Interrupts . | . . . Stealth | -11 -10 -9 --------- Run | Yrd Mat Mat Distress Signals 2 | . 1 1 Communications Jammed . | . . . Distress Signals . | . . . Times Spotted 30 | . 11 19 Peak Tracking Total 8 | . 4 8 Tactical Retreats 4 | . . 4 Traps | -11 -10 -9 ------- Run | Yrd Mat Mat Traps Triggered . | . . . Indirectly . | . . . Trap Hack Attempts . | . . . Triggered . | . . . Disarmed . | . . . Reprogrammed . | . . . Reused . | . . . Traps Extracted . | . . . Installed . | . . . Triggered . | . . . Machines | -11 -10 -9 ---------- Run | Yrd Mat Mat Machines Disabled 3 | . . 3 Max in Single Turn 1 | . . 1 Machines Repaired . | . . . Machines Dismantled . | . . . Machines Sabotaged . | . . . Overloaded Fab Kills . | . . . Hacking | -11 -10 -9 --------- Run | Yrd Mat Mat Machines Accessed 4 | . 2 2 Terminals 2 | . 1 1 Fabricators . | . . . Repair Stations . | . . . Recycling Units 2 | . 1 1 Scanalyzers . | . . . Garrison Access . | . . . Total Hacks 6 | . 3 3 Successful 5 | . 2 3 Failed 1 | . 1 . Catastrophic . | . . . Database Lockouts . | . . . Manual 2 | . 2 . Terminals 2 | . 1 1 Fabricators . | . . . Repair Stations . | . . . Recycling Units 4 | . 2 2 Scanalyzers . | . . . Garrison Access . | . . . Terminal Hacks 1 | . . 1 Branch Access Points 1 | . . 1 Fabricator Hacks . | . . . Repair Station Hacks . | . . . Recycling Unit Hacks 3 | . 1 2 Process 1 | . . 1 Retrieve Matter 1 | . . 1 Retrieve Components 1 | . 1 . Scanalyzer . | . . . Garrison Access Hacks . | . . . Unauthorized Hacks 1 | . 1 . Terminals 1 | . 1 . Botnet 1 | . 1 . Fabricators . | . . . Repair Stations . | . . . Recycling Units . | . . . Scanalyzers . | . . . Garrison Access . | . . . Data Cores Recovered 1 | . 1 . Used . | . . . Hacking Detections 1 | . 1 . Full Trace Events . | . . . Feedback Events . | . . . Feedback Blocked . | . . . Robot Schematics Acquired . | . . . Robots Built . | . . . Authchips . | . . . Time . | . . . Total Robot Build Rating . | . . . Part Schematics Acquired . | . . . Parts Built . | . . . Authchips . | . . . Time . | . . . Total Part Build Rating . | . . . Part Studies Acquired . | . . . Parts Repaired . | . . . Time . | . . . Parts Recycled . | . . . Recycled Matter 150 | . . 150 Retrieved Matter 360 | . . 360 Retrieved Components 5 | . 5 . Parts Scanalyzed . | . . . Part Schematics Acquired . | . . . Parts Damaged . | . . . Bothacking | -11 -10 -9 ------------ Run | Yrd Mat Mat Used RIF Installer . | . . . Robots Hacked . | . . . Non-combat . | . . . Combat . | . . . Robot Hacks Applied . | . . . Relay Couplers Released . | . . . Fabnet Peak Effective % . | . . . Robots Rewired . | . . . Allies Hacked . | . . . Hacks Repelled . | . . . Allies | -11 -10 -9 -------- Run | Yrd Mat Mat Total Allies . | . . . Largest Group . | . . . Highest-Rated Group . | . . . Highest-Rated Ally . | . . . Total Orders . | . . . Ally Attacks . | . . . Total Damage . | . . . Kills . | . . . Allies Corrupted . | . . . Allies Melted . | . . . Intel | -11 -10 -9 ------- Run | Yrd Mat Mat Active Infowar (turns) 932 | 34 543 355 Seismic 932 | 34 543 355 Robot Analysis Total . | . . . Derelict Logs Recovered . | . . . Drone Launches . | . . . Drone Recoveries . | . . . Exploration | -11 -10 -9 ------------- Run | Yrd Mat Mat Turns Passed 1283 | 270 543 470 Spaces Moved 733 | 136 236 361 Core 17 | 6 . 11 Treads 370 | 130 226 14 Legs . | . . . Wheels . | . . . Hover 346 | . 10 336 Flight . | . . . Fastest Speed 48 | 50 160 48 Average Speed 116 | 155 161 72 Slowest Speed 600 | 160 320 600 Overloaded Moves . | . . . Propulsion Burnouts . | . . . Robots Hopped . | . . . Potential Cave-ins . | . . . Cave-ins Triggered . | . . . Exploration Rate (%) 25 | 5 35 35 Regions Visited 2 Branch Regions . Pre-discovered Areas . | . . . Known Exits Taken . | . . . Unknown Exits Taken 2 | 1 1 . Scrap Searched . | . . . Spaces Dug . | . . . Terrain Destroyed 69 | . . 69 Melee . | . . . Projectile . | . . . AOE 69 | . . 69 Terrain Rammed . | . . . Walls Destroyed . | . . . Machines Disabled . | . . . Actions | -11 -10 -9 --------- Run | Yrd Mat Mat Total 1053 | 175 340 538 Wait 182 | 14 52 116 Move 731 | 135 235 361 Hop . | . . . Pick Up 25 | 9 9 7 Fast Attach 9 | 6 . 3 Attach 11 | 1 . 10 Detach 5 | . . 5 Swap 12 | . 7 5 Drop 11 | . 7 4 Fire 67 | 10 30 27 Melee . | . . . Ram . | . . . Kick . | . . . Crush . | . . . Escape Stasis . | . . . Rewire . | . . . Trap . | . . . Miscellaneous . | . . . Route ------- -11/Scrapyard -10/Materials (discovered 2 exits: *Mat / [*Min]) -9/Materials (discovered 2 exits: *Min x2) History --------- Turn | Location | Event 6 | -11/Scrapyard | Discovered new exit (range 16) 271 | -11/Scrapyard | Entered Materials 342 | -10/Materials | Build established: Mutant 514 | -10/Materials | Discovered new exit (range 16) 660 | -10/Materials | Discovered new exit (range 16) 814 | -10/Materials | Entered another Materials area 814 | -9/Materials | Evolved 2 slots: Propulsion x2 953 | -9/Materials | Discovered new exit (range 16) 954 | -9/Materials | Identified exit to Mines 1251 | -9/Materials | Core integrity fell below 50% 1272 | -9/Materials | Core integrity fell below 20% 1284 | -9/Materials | Destroyed by Y-45 Defender with Heavy Assault Rifle Last Messages --------------- 01236_ G-34 Mercenary destroyed. 01238_ Critical hit (Burn: +37). 01238_ U-05 Engineer lays Concrete. 01239_ Y-45 Defender destroyed. 01242_ K-01 Serf collects debris. 01244_ Hvy. Ion Engine destroyed. 01245_ U-05 Engineer lays Concrete. 01245_ K-01 Serf collects debris. 01246_ Adv. Beam Cannon destroyed. 01246_ U-05 Engineer lays Concrete. 01248_ U-05 Engineer builds a Door. 01249_ U-05 Engineer lays Concrete. 01251_ K-01 Serf collects debris. 01253_ U-05 Engineer lays Concrete. 01254_ Adv. Beam Cannon destroyed. 01254_ K-01 Serf collects debris. 01256_ U-05 Engineer lays Concrete. 01258_ Critical hit (Burn: +37). 01259_ K-01 Serf collects debris. 01261_ Hover Unit destroyed. Map ----- +----------------------------------------------------+ | ?????????????????????????????????????????????????? | | ?????????????????????????????????????????????????? | | ?????????????????????????????????????????????????? | | ?????????????????????????????????????????????????? | | ?????????????????????????????????????????????????? | | ?????????????????????????????????????????????????? | | ?????????????????????????????????????????????????? | | ??? ?????????????????????????????????????????????? | | ??# ?????????????????????????????????????????????? | | ??# ?????????????????????????????????????????????? | | ??# #????????????????????????????????????????????? | | ### ###??????????????????????????????????????????? | | # #??????????????????????????????????????????? | | #??????????????????????????????????????????? | | #??????????????##??????????????????????????? | | #?????????##### #??????????????????????????? | | # ??????????[/ #??????????????????????????? | | ?# #?????????#[/ #??????????????????????????? | | ?# #?????????#!/ #??????????????????????????? | | ## ######????# #??????????#???????????????? | | ## ###??# #????????? #???????????????? | | ## ### #??# #???????? #???????????????? | | # # #??# ####+### #???????????????? | | # % # ##### """ # #???????????????? | | + / """ + +???????????????? | | # # #### """ # @ #???????????????? | | # # # # """ # ### #???????????????? | | ## !!""" # #??????????????????????? | | ## ![= # #??????????????????????? | | %# # #/######Y #??????????????????????? | | # # #%* Yg #??????????????????????? | | # # %/% #??????????????????????? | | # T + # #??????????????????????? | | # # ### ########??????????????????????? | | # # ### #?????????????????????????????? | | ###+### #?# #?????????????????????????????? | | ??????##########?# #?????????????????????????????? | | ?????????????????# #?????????????????????????????? | | ????????????????? #?????????????????????????????? | | ?????????????????# #?????????????????????????????? | | ?????????????????? ??????????????????????????????? | | ?????????????????? ??????????????????????????????? | | ?????????????????? ??????????????????????????????? | | ?????????????????? ??????????????????????????????? | | ?????????????????? ??????????????????????????????? | | ####?????????????? ??????????????????????????????? | | #?????????????????????????????????????????????? | | ""#?????????????????????????????????????????????? | | %Y"#?????????????????????????????????????????????? | | ""#?????????????????????????????????????????????? | +----------------------------------------------------+ Best States ------------- Heat Dissipation 28 Energy Generation 14 Energy Capacity 280 Matter Stores 300 Matter Capacity 300 Sight Range 16 Terrain Scan Density 10 Evasion (%) 55 Recoil Reduction 2 Item Schematics ----------------- None Robot Schematics ------------------ None Fabricated ------------ Nothing Repaired ---------- Nothing Studied --------- None Alien Tech Used ----------------- None Achievements -------------- None Challenges ------------ None Game ------ Seed VampiricControlFacilitator Manual? 0 Play Time 00:21:08 Cumulative 31.2 hours Start 2026.03.10 @ 23:09:06 End 2026.03.11 @ 12:33:26 Sessions 1 Manual Loads 0 Difficulty Rogue Special Mode None Game No. 56 Rogue 56 Adventurer 0 Explorer 0 Win Type - Total 0 Types 0/0/0/0/0/0/0/0/0/0 Lore% 11 Gallery% 28 Achievement% 20 Wizard Run 0 Options --------- Layout 2 ASCII 0 Keyboard 1 Movement Numpad Keybinds 0 Fullscreen 1 Font 24/Smallcaps Map View 50x44 Zoom Use 0% Tactical HUD 1 Map Filters NONE Filters NONE Steam X RUN: 75e3745b-7d39-40c8-b365-c8a01792632b